Cogmind - Beta 14 @@@ ROGUE MODE // 2025.03.25 @ 12:01:34 Player: Zoe Result: Destroyed by Lightning with EMDS Performance ------------- Evolutions (5) 2500 Regions Visited (10) 2000 Robots Destroyed (161) 805 Value Destroyed (6062) 6062 Prototype IDs (12) 240 Alien Tech Used (0) 0 Bonus (3819) 3819 TOTAL SCORE: 15426 Bonus ------- Pacifist 200 High Alert Combat Kills 977 Follower Combat Kills 1305 Network Hubs Disabled 400 Built Enhanced Grunts 300 A7 Reached Mainframe 300 Met R17 at Cetus 500 Friendly Fire -163 Cogmind --------- Core Integrity 0/1000 Matter 155/300 Energy 90/100 System Corruption 100% Temperature Cool (0) Movement Core (50) Location -5/Hub_04(d) Parts ------- > --- POWER (2) -------- (None) > --- PROPULSION (4) --- (None) > --- UTILITY (9) ------ Advanced Heat Sink Improved Signal Interpreter Advanced Targeting Computer Advanced System Shield > --- WEAPON (2) ------- (None) > --- INVENTORY (5) ---- Quantum Reactor Heavy Armor Plating Advanced Variable Charge Gun Heavy Shock Bomb Launcher Peak State ------------ > --- POWER ------------ Neutrino Core Quantum Reactor > --- PROPULSION ------- Centrium Heavy Treads Centrium Heavy Treads > --- UTILITY ---------- Advanced Heat Sink Advanced Heat Sink High-capacity Storage Unit Improved Sensor Array Improved Signal Interpreter Advanced Targeting Computer Centrium Medium Armor Plating Improved Hacking Suite Advanced System Shield > --- WEAPON ----------- Advanced Variable Charge Gun Advanced KE Penetrator > --- INVENTORY -------- Light Nuclear Core Light Angular Momentum Engine Light Angular Momentum Engine Neutrino Core Quantum Reactor Quantum Reactor Improved Treads Carbon-fiber Leg Carbon-fiber Leg Carbon-fiber Leg Improved Sensor Array Centrium Medium Armor Plating Centrium Medium Armor Plating Heavy Gatling Laser Heavy Gatling Laser Advanced Variable Charge Gun Advanced Variable Charge Gun Advanced Variable Charge Gun Advanced KE Penetrator Heavy Shock Bomb Launcher [Rating: 119] Favorites ----------- Power Improved Deuterium Engine Engine Improved Deuterium Engine Power Core Neutrino Core Reactor Quantum Reactor Propulsion Improved Carbon-fiber Leg Treads Centrium Heavy Treads Leg Improved Carbon-fiber Leg Wheel Wheel Utility Improved Signal Interpreter Device Advanced Heat Sink Storage High-capacity Storage Unit Processor Improved Signal Interpreter Hackware Hacking Suite Protection Hardened Light Armor Plating Weapon Heavy Gatling Laser Energy Gun Heavy Gatling Laser Energy Cannon Improved EM Pulse Cannon Ballistic Gun Improved Assault Rifle Ballistic Cannon Advanced Assault Cannon Launcher Heavy Shock Bomb Launcher Special Weapon Plasma Cutter Impact Weapon Hammer Build | -11 -10 -9 -8 -7 -6 -5 -5 -5 -5 -5 ------- Run | Yrd Mat Mat Mat Fac Fac Fac Ext Cet Arc Hub Slots Evolved 10 | . . 2 2 2 2 2 . . . . Power 1 | . . . . . 1 . . . . . Propulsion 2 | . . 2 . . . . . . . . Utility 7 | . . . 2 2 1 2 . . . . Weapon . | . . . . . . . . . . . Parts Attached 243 | 6 1 11 37 44 1 63 40 15 9 16 Power 31 | 1 . 4 2 2 1 10 4 1 1 5 Engine 20 | 1 . 3 2 2 1 7 2 . . 2 Core 8 | . . 1 . . . 3 2 . . 2 Reactor 3 | . . . . . . . . 1 1 1 Propulsion 59 | 2 . 3 17 10 . 8 12 3 2 2 Treads 21 | . . 2 8 3 . 2 . 3 1 2 Leg 22 | 2 . 1 5 5 . 6 2 . 1 . Wheel 16 | . . . 4 2 . . 10 . . . Hover . | . . . . . . . . . . . Flight . | . . . . . . . . . . . Utility 82 | 1 1 1 12 19 . 22 15 3 4 4 Device 19 | . . . 2 3 . 5 5 1 3 . Storage 5 | 1 . . 1 1 . . 2 . . . Processor 5 | . 1 . 1 1 . . 2 . . . Hackware 5 | . . . . 2 . 3 . . . . Protection 48 | . . 1 8 12 . 14 6 2 1 4 Artifact . | . . . . . . . . . . . Weapon 71 | 2 . 3 6 13 . 23 9 8 2 5 Energy Gun 26 | . . 1 3 . . 6 7 3 2 4 Energy Cannon 14 | . . . 1 6 . 5 1 1 . . Ballistic Gun 10 | 2 . 1 1 2 . 1 1 2 . . Ballistic Cannon 7 | . . . . 2 . 5 . . . . Launcher 12 | . . . . 3 . 6 . 2 . 1 Special Weapon 1 | . . 1 . . . . . . . . Impact Weapon 1 | . . . 1 . . . . . . . Slashing Weapon . | . . . . . . . . . . . Piercing Weapon . | . . . . . . . . . . . Special Melee Weapon . | . . . . . . . . . . . Unidentified Prototypes 10 | . . . . 1 . 3 1 4 1 . Corrupted Parts 16 | . . . 1 1 . 4 1 5 . 4 System Corruption 71 | . . . 1 2 . 6 7 30 . 25 Parts Lost 88 | . . 2 17 7 . 33 9 4 1 15 Power 18 | . . 1 1 1 . 9 1 . . 5 Propulsion 31 | . . 1 9 3 . 10 4 1 . 3 Utility 27 | . . . 5 2 . 11 2 3 . 4 Weapon 12 | . . . 2 1 . 3 2 . 1 3 Highest Loss Streak 12 | . . 1 5 4 . 5 4 4 1 12 To Critical Strikes . | . . . . . . . . . . . Average Slot Usage (%) 93 | . 96 85 93 99 93 94 97 88 87 85 Engine 5 | . 14 8 9 7 13 7 2 . . 3 Core 3 | . . 2 . . . 2 7 5 5 4 Treads 6 | . . 10 15 4 . 1 . 10 10 10 Leg 8 | . 28 19 10 2 26 18 4 . . . Wheel 6 | . . . 6 21 . . 16 . . . Device 9 | . . . . 7 6 6 14 16 16 16 Storage 6 | . 14 11 9 7 6 5 5 5 5 4 Processor 7 | . 10 6 8 7 6 5 9 11 11 11 Hackware 10 | . . . . 9 13 19 12 11 11 5 Protection 9 | . . 4 17 11 6 11 6 4 5 10 Energy Gun 5 | . . . 10 . . 5 8 5 5 5 Energy Cannon 1 | . . . . 4 6 2 . 3 . . Ballistic Gun 3 | . 28 20 4 5 6 1 . . 5 4 Ballistic Cannon 1 | . . . . 4 . 1 1 . . . Peak Build Rating 119 | 6 7 12 31 51 54 76 78 119 119 119 Average Rating 63 | 4 6 8 19 41 54 66 69 109 115 111 On Entrance 47 | . 6 7 11 31 51 54 54 75 119 116 Naked Turns . | . . . . . . . . . . . Heaviest Build 98 | 13 13 20 36 81 79 84 92 98 95 98 Greatest Support 160 | 20 20 40 80 74 74 76 58 160 160 160 Greatest Overweight (x) 8 | . . 1 2 6 1 5 7 8 1 . Average Overweight (x) . | . . . . 1 1 . 2 . . . Largest Inventory Capacity 20 | 8 8 8 10 20 20 20 20 20 20 20 Average Capacity 17 | 6 8 8 9 19 20 20 20 20 20 19 Most Carried 20 | 2 3 8 10 20 18 20 20 20 20 20 Average Carried 14 | 1 2 5 8 13 18 16 15 19 19 16 Final Capacity 20 | 8 8 8 10 20 20 20 20 20 20 5 Final Carried 20 | 2 3 7 10 19 18 12 17 20 20 5 Class Distribution -------------------- 46% | Scavenger-Mutant 37% | Hacker-Mutant 16% | Mutant Dominant Class ---------------- Mutant | -10/Materials Mutant | -9/Materials Scavenger-Mutant | -8/Materials Mutant | -7/Factory Hacker-Mutant | -6/Factory Hacker-Mutant | -5/Factory Scavenger-Mutant | -5/Extension Scavenger-Mutant | -5/Cetus Scavenger-Mutant | -5/Archives Scavenger-Mutant | -5/Hub_04(d) Resources | -11 -10 -9 -8 -7 -6 -5 -5 -5 -5 -5 ----------- Run | Yrd Mat Mat Mat Fac Fac Fac Ext Cet Arc Hub Matter Collected 3874 | 260 . 210 471 666 . 1029 666 260 94 218 Remotely . | . . . . . . . . . . . Salvage Created 6166 | . . 495 906 1379 . 1584 811 299 98 594 Parts 312 | . . 40 38 84 . 80 33 12 2 23 Haulers Intercepted 5 | . . . 2 1 . . 1 . . 1 Recyclers Shooed 4 | . . 1 . . . 1 1 . . 1 Parts Field Recycled . | . . . . . . . . . . . Retrieved Matter . | . . . . . . . . . . . Parts Self-Destructed . | . . . . . . . . . . . Prevented . | . . . . . . . . . . . Kills | -11 -10 -9 -8 -7 -6 -5 -5 -5 -5 -5 ------- Run | Yrd Mat Mat Mat Fac Fac Fac Ext Cet Arc Hub Combat Hostiles Destroyed 102 | . . 13 12 28 . 31 7 3 1 7 Melee 1 | . . . 1 . . . . . . . Guns 51 | . . 13 10 2 . 13 6 . 1 6 Cannons 19 | . . . . 14 . 5 . . . . AOE 21 | . . . . 10 . 11 . . . . Classes Destroyed 16 | . . 5 4 4 . 2 1 . . . Worker 22 | . . 1 3 4 . 8 3 . . 3 Builder 8 | . . . . 4 . 3 1 . . . Tunneler 4 | . . . . 1 . 1 . . . 2 Hauler 5 | . . . 2 1 . . 1 . . 1 Recycler 7 | . . 1 2 1 . 1 2 . . . Operator 1 | . . . . . . 1 . . . . Watcher 12 | . . . 1 3 . 4 1 2 . 1 Swarmer 15 | . . 7 . 3 . 5 . . . . Grunt 40 | . . 4 7 12 . 12 2 . . 3 Brawler 3 | . . . 1 . . 2 . . . . Duelist 3 | . . . 1 . . 2 . . . . Protector 1 | . . . . . . 1 . . . . Sentry 15 | . . 2 3 2 . 2 2 . 1 3 Hunter 8 | . . . . 5 . 3 . . . . Programmer 11 | . . . . 6 . 4 1 . . . Behemoth 3 | . . . . . . . 2 . . 1 Cetus Guard 3 | . . . . . . . . 3 . . Best Kill Streak 12 | . . 5 3 12 . 9 3 3 1 4 Combat Bots Only 6 | . . 4 2 6 . 5 2 2 1 2 Max Kills in Single Turn 5 | . . 1 2 5 . 4 2 1 1 4 Gunslinging . | . . . . . . . . . . . Exploded 4 | . . . . 3 . 4 . . . . Melee 1 | . . . 1 . . . . . . . Uniques/NPCs Destroyed . | . . . . . . . . . . . Combat | -11 -10 -9 -8 -7 -6 -5 -5 -5 -5 -5 -------- Run | Yrd Mat Mat Mat Fac Fac Fac Ext Cet Arc Hub Hostile Shots Fired 931 | . . 65 213 169 . 252 86 32 12 102 Missed 242 | . . 12 46 63 . 65 35 6 4 11 Damage Taken 14683 | . . 566 2476 1819 . 4324 922 543 213 3820 Core 1473 | . . 78 212 174 . 366 126 71 . 446 Absorbed by Shields 483 | . . . . . . . 332 151 . . Reduced by Siege Mode 154 | . . . . . . . . . 8 146 Regen/Repaired (Parts) 381 | . . . 8 373 . . . . . . Core Remaining (%) 86 | 100 100 80 61 75 100 . . . . . Volleys Fired 446 | . . 36 81 65 . 118 55 29 14 48 Largest 2 | . . 2 2 2 . 2 2 2 2 2 Hottest 240 | . . 43 106 138 . 200 200 240 135 160 Shots Fired 705 | . . 72 110 115 . 164 96 35 25 88 Gun 521 | . . 72 110 36 . 90 91 15 25 82 Cannon 155 | . . . . 73 . 65 5 12 . . Launcher 29 | . . . . 6 . 9 . 8 . 6 Special . | . . . . . . . . . . . Kinetic 283 | . . 72 45 73 . 43 9 . 14 27 Thermal 254 | . . . 54 . . 61 58 15 11 55 Explosive 13 | . . . . 6 . 7 . . . . Electromagnetic 155 | . . . 11 36 . 53 29 20 . 6 Robot Hit Streak 21 | . . 13 17 9 . 21 13 3 4 16 Robot Miss Streak 7 | . . 5 3 4 . 6 6 6 1 7 Penetration Max 1 | . . . . . . . . . . 1 Secondary Targets 2 | . . 1 . . . . 1 . . . Max Gunslinging Chain 1 | . . 1 . . . . 1 . . . Shots Hit Robots 477 | . . 44 106 69 . 108 73 10 7 60 Core Hits 396 | . . 29 41 78 . 144 46 15 3 40 Critical Kills 1 | . . . . . . . . . 1 . Critical Parts Destroyed 5 | . . . 3 1 . . . . . 1 Critical Strikes 13 | . . . 8 2 . . . . 2 1 Burn 4 | . . . 4 . . . . . . . Destroy 4 | . . . . 1 . . . . 2 1 Blast 1 | . . . . 1 . . . . . . Smash 4 | . . . 4 . . . . . . . Melee Attacks 30 | . . . 30 . . . . . . . Impact 30 | . . . 30 . . . . . . . Slashing . | . . . . . . . . . . . Piercing . | . . . . . . . . . . . Sneak Attacks 3 | . . . 3 . . . . . . . Combat Hostiles . | . . . . . . . . . . . Follow-up Attacks . | . . . . . . . . . . . Damage Inflicted 15845 | . . 490 1929 3147 . 5214 1756 853 181 2275 Guns 7798 | . . 490 1308 352 . 2002 1652 136 181 1677 Cannons 2307 | . . . . 1428 . 792 87 . . . Explosions 5039 | . . . . 1367 . 2412 . 717 . 543 Melee 561 | . . . 561 . . . . . . . Ramming 140 | . . . 60 . . 8 17 . . 55 Kinetic 3067 | . . 490 518 1022 . 327 165 . 137 408 Thermal 5641 | . . . 674 91 . 2087 1340 136 44 1269 Explosive 3071 | . . . . 1259 . 1812 . . . . Electromagnetic 3365 | . . . 116 775 . 980 234 717 . 543 Impact 561 | . . . 561 . . . . . . . Slashing . | . . . . . . . . . . . Piercing . | . . . . . . . . . . . Highest Corruption 98 | . . . 1 7 . 12 19 49 49 98 Average Corruption 22 | . . . 1 4 . 6 16 46 49 52 Corruption Purged . | . . . . . . . . . . . Corruption Blocked . | . . . . . . . . . . . Effects 267 | . . . 4 27 . 51 59 56 19 51 Message Errors 63 | . . . 1 5 . 12 16 15 5 9 Matter Fused 46 | . . . . 7 . 12 10 12 2 3 Heat Flow Errors 32 | . . . 1 3 . 5 7 8 . 8 Energy Discharges 23 | . . . 1 . . 6 7 6 2 1 Parts Rejected 8 | . . . . 1 . 2 1 . 1 3 Parts Fused 1 | . . . . . . . . 1 . . Data Loss (minor) 32 | . . . 1 2 . 4 9 6 3 7 Data Loss (major) 16 | . . . . 3 . 2 3 2 4 2 Misfires 17 | . . . . 3 . 2 3 3 1 5 Alerts 4 | . . . . 1 . 1 . 1 . 1 Misdirections 9 | . . . . . . 1 3 . . 5 Weapon Failures 16 | . . . . 2 . 4 . 2 1 7 Overload Shots 1 | . . . . . . . . 1 . . Overflow Damage 312 | . . . 121 62 . 67 . 3 . 59 Projectiles 83 | . . . . 51 . 32 . . . . Explosions 108 | . . . . 11 . 35 . 3 . 59 Melee 121 | . . . 121 . . . . . . . Knockbacks 10 | . . . 3 4 . 2 1 . . . Impact 3 | . . . 3 . . . . . . . Kinetic 7 | . . . . 4 . 2 1 . . . Secondary . | . . . . . . . . . . . Self-Inflicted Damage 953 | . . . 10 344 . 333 8 8 . 250 Shots 33 | . . . . 12 . 13 . 1 . 7 Rammed 16 | . . . 12 . . . 1 . . 3 Targets Rammed 25 | . . 1 17 . . 2 1 . . 4 Kicked 8 | . . 1 5 . . 2 . . . . Crushed 1 | . . . . . . . . . . 1 Highest Temperature 470 | . . 8 453 231 . 470 416 298 . 227 Average Temperature 127 | . . 4 155 51 . 120 122 115 . 89 Received Heat Transfer 2963 | . . 132 1449 279 . 573 206 36 18 270 Effects 25 | . . . 10 . . 12 3 . . . Shutdowns 6 | . . . 2 . . 2 2 . . . Energy Bleed 2 | . . . 1 . . 1 . . . . Interference 6 | . . . 6 . . . . . . . Matter Decay 1 | . . . . . . 1 . . . . Short Circuit 2 | . . . . . . 1 1 . . . Damage (minor) 1 | . . . 1 . . . . . . . Damage (major) 7 | . . . . . . 7 . . . . Siege Activations 7 | . . . . . . . . . 1 6 Total Turns 140 | . . . . . . . . . 7 133 Longest Duration 67 | . . . . . . . . . 7 67 Robots Corrupted 10 | . . . 3 2 . 1 1 3 . . Combat Hostiles 8 | . . . 1 2 . 1 1 3 . . Parts Fried 26 | . . . 3 4 . 12 . 5 . 2 Impact Corruptions 6 | . . . 6 . . . . . . . Robots Melted 2 | . . . . . . 1 . . . 1 Combat Hostiles 2 | . . . . . . 1 . . . 1 Parts Melted 13 | . . . 2 . . 7 3 . . 1 Heat Transferred 9181 | . . . 1924 100 . 3000 2175 225 74 1683 Parts Sabotaged . | . . . . . . . . . . . Parts Stolen . | . . . . . . . . . . . Parts Stripped . | . . . . . . . . . . . Power Chain Reactions 5 | . . . . 3 . . . 1 . 1 Alert | -11 -10 -9 -8 -7 -6 -5 -5 -5 -5 -5 ------- Run | Yrd Mat Mat Mat Fac Fac Fac Ext Cet Arc Hub Peak Influence 1105 | . . 405 378 679 310 1105 876 561 531 683 Initial 492 | . . . 170 35 310 151 492 427 224 185 Average 438 | . . 241 194 458 310 608 475 406 482 419 Maximum Alert Level 4 | . . 2 1 2 1 4 3 2 2 2 Low Security (%) 23 | 100 100 34 60 20 . 23 16 . . 9 Level 1 23 | . . 53 39 11 100 8 15 49 10 37 Level 2 39 | . . 12 . 67 . 27 46 50 89 52 Level 3 13 | . . . . . . 39 21 . . . Level 4 . | . . . . . . . . . . . Level 5 . | . . . . . . . . . . . High Security . | . . . . . . . . . . . Max Security . | . . . . . . . . . . . Squads Dispatched 29 | . . 1 1 13 . 10 1 . . 3 Investigation 7 | . . 1 . 5 . . 1 . . . Extermination 8 | . . . . 5 . 3 . . . . Reinforcement 10 | . . . 1 3 . 4 . . . 2 Assault 3 | . . . . . . 3 . . . . Garrison 1 | . . . . . . . . . . 1 Intercept . | . . . . . . . . . . . Searches Triggered . | . . . . . . . . . . . Construction Impeded 2 | . . . . 1 . . . . . 1 Haulers Reinforced . | . . . . . . . . . . . Active Scanning Responses . | . . . . . . . . . . . Cargo Convoy Interrupts . | . . . . . . . . . . . Stealth | -11 -10 -9 -8 -7 -6 -5 -5 -5 -5 -5 --------- Run | Yrd Mat Mat Mat Fac Fac Fac Ext Cet Arc Hub Distress Signals 16 | . . 3 3 2 . 5 . 2 . 1 Communications Jammed . | . . . . . . . . . . . Distress Signals . | . . . . . . . . . . . Times Spotted 215 | . 1 17 21 34 . 70 28 16 4 24 Peak Tracking Total 8 | . 2 7 4 7 . 8 5 6 2 6 Tactical Retreats 14 | . . 2 2 . . 7 2 . . 1 Traps | -11 -10 -9 -8 -7 -6 -5 -5 -5 -5 -5 ------- Run | Yrd Mat Mat Mat Fac Fac Fac Ext Cet Arc Hub Traps Triggered 3 | . . . . 1 . 2 . . . . Indirectly . | . . . . . . . . . . . Trap Hack Attempts . | . . . . . . . . . . . Triggered . | . . . . . . . . . . . Disarmed . | . . . . . . . . . . . Reprogrammed . | . . . . . . . . . . . Reused . | . . . . . . . . . . . Traps Extracted . | . . . . . . . . . . . Installed . | . . . . . . . . . . . Triggered 1 | . . . . . . 1 . . . . Machines | -11 -10 -9 -8 -7 -6 -5 -5 -5 -5 -5 ---------- Run | Yrd Mat Mat Mat Fac Fac Fac Ext Cet Arc Hub Machines Disabled 39 | . . 2 . 4 . 9 2 4 8 10 Max in Single Turn 9 | . . 1 . 2 . 5 1 1 1 9 Garrison Access 1 | . . . . . . . . . . 1 Network Hub 2 | . . . . . . . . . . 2 Machines Repaired . | . . . . . . . . . . . Machines Dismantled 1 | . . 1 . . . . . . . . Machines Sabotaged . | . . . . . . . . . . . Overloaded Fab Kills . | . . . . . . . . . . . Hacking | -11 -10 -9 -8 -7 -6 -5 -5 -5 -5 -5 --------- Run | Yrd Mat Mat Mat Fac Fac Fac Ext Cet Arc Hub Machines Accessed 36 | . 1 1 5 10 . 2 10 3 1 3 Terminals 27 | . 1 1 4 6 . 1 9 3 . 2 Fabricators 3 | . . . . 3 . . . . . . Repair Stations 4 | . . . 1 1 . 1 1 . . . Recycling Units . | . . . . . . . . . . . Scanalyzers . | . . . . . . . . . . . Garrison Access 1 | . . . . . . . . . . 1 Total Hacks 124 | . 2 5 12 35 . 3 25 13 25 4 Successful 65 | . . . 6 21 . 1 9 2 25 1 Failed 59 | . 2 5 6 14 . 2 16 11 . 3 Catastrophic 15 | . 1 1 2 3 . . 4 2 . 2 Database Lockouts . | . . . . . . . . . . . Manual 26 | . . . 4 12 . . 4 2 1 3 Terminals 73 | . 2 5 7 19 . 1 23 13 . 3 Fabricators 8 | . . . . 8 . . . . . . Repair Stations 17 | . . . 5 8 . 2 2 . . . Recycling Units . | . . . . . . . . . . . Scanalyzers . | . . . . . . . . . . . Garrison Access 1 | . . . . . . . . . . 1 Terminal Hacks 45 | . . . 4 4 . 1 9 2 25 . Record 28 | . . . . . . . 1 2 25 . Part Schematic 2 | . . . 1 1 . . . . . . Robot Analysis 1 | . . . . 1 . . . . . . Prototype ID Bank 1 | . . . 1 . . . . . . . Open Door 5 | . . . . . . . 5 . . . Branch Access Points 3 | . . . . 1 . 1 1 . . . Repair Station Index 1 | . . . 1 . . . . . . . Alert Level 2 | . . . 1 . . . 1 . . . Unreport Threat 1 | . . . . . . . 1 . . . Zone Layout 1 | . . . . 1 . . . . . . Fabricator Hacks 6 | . . . . 6 . . . . . . Network Status 1 | . . . . 1 . . . . . . Load Schematic 3 | . . . . 3 . . . . . . Build 2 | . . . . 2 . . . . . . Repair Station Hacks 10 | . . . 2 8 . . . . . . Scan Component 5 | . . . 1 4 . . . . . . Repair 5 | . . . 1 4 . . . . . . Recycling Unit Hacks . | . . . . . . . . . . . Scanalyzer . | . . . . . . . . . . . Garrison Access Hacks 1 | . . . . . . . . . . 1 Seal Access 1 | . . . . . . . . . . 1 Unauthorized Hacks 3 | . . . . 3 . . . . . . Terminals 3 | . . . . 3 . . . . . . Assimilate 1 | . . . . 1 . . . . . . Botnet 2 | . . . . 2 . . . . . . Fabricators . | . . . . . . . . . . . Repair Stations . | . . . . . . . . . . . Recycling Units . | . . . . . . . . . . . Scanalyzers . | . . . . . . . . . . . Garrison Access . | . . . . . . . . . . . Data Cores Recovered . | . . . . . . . . . . . Used . | . . . . . . . . . . . Hacking Detections 29 | . 1 1 3 10 . 1 8 3 . 2 Full Trace Events 7 | . . 1 . 5 . . 1 . . . Feedback Events . | . . . . . . . . . . . Feedback Blocked . | . . . . . . . . . . . Robot Schematics Acquired . | . . . . . . . . . . . Robots Built . | . . . . . . . . . . . Authchips . | . . . . . . . . . . . Time . | . . . . . . . . . . . Total Robot Build Rating . | . . . . . . . . . . . Part Schematics Acquired 2 | . . . 1 1 . . . . . . Parts Built 2 | . . . . 2 . . . . . . Authchips . | . . . . . . . . . . . Time 72 | . . . . 72 . . . . . . Total Part Build Rating 6 | . . . . 6 . . . . . . Parts Repaired 5 | . . . 1 4 . . . . . . Time 214 | . . . 44 170 . . . . . . Parts Recycled . | . . . . . . . . . . . Recycled Matter . | . . . . . . . . . . . Retrieved Matter . | . . . . . . . . . . . Retrieved Components . | . . . . . . . . . . . Parts Scanalyzed . | . . . . . . . . . . . Part Schematics Acquired . | . . . . . . . . . . . Parts Damaged . | . . . . . . . . . . . Bothacking | -11 -10 -9 -8 -7 -6 -5 -5 -5 -5 -5 ------------ Run | Yrd Mat Mat Mat Fac Fac Fac Ext Cet Arc Hub Used RIF Installer . | . . . . . . . . . . . Robots Hacked . | . . . . . . . . . . . Non-combat . | . . . . . . . . . . . Combat . | . . . . . . . . . . . Robot Hacks Applied . | . . . . . . . . . . . Relay Couplers Released . | . . . . . . . . . . . Fabnet Peak Effective % . | . . . . . . . . . . . Robots Rewired 7 | . . . . . . 1 6 . . . Allies Hacked . | . . . . . . . . . . . Hacks Repelled . | . . . . . . . . . . . Allies | -11 -10 -9 -8 -7 -6 -5 -5 -5 -5 -5 -------- Run | Yrd Mat Mat Mat Fac Fac Fac Ext Cet Arc Hub Total Allies 19 | . . . . 1 . 1 12 5 . . Largest Group 9 | . . . . 1 . 1 9 7 7 4 Highest-Rated Group 662 | . . . . 26 . 49 418 662 656 327 Highest-Rated Ally 159 | . . . . 26 . 49 159 143 137 96 Total Orders . | . . . . . . . . . . . Ally Attacks 253 | . . . . . . 7 152 37 15 42 Total Damage 5738 | . . . . . . 199 2352 1150 491 1546 Kills 42 | . . . . . . 1 22 11 4 4 Allies Corrupted . | . . . . . . . . . . . Allies Melted 1 | . . . . . . . . . . 1 Intel | -11 -10 -9 -8 -7 -6 -5 -5 -5 -5 -5 ------- Run | Yrd Mat Mat Mat Fac Fac Fac Ext Cet Arc Hub Robot Analysis Total 1 | . . . . 1 . . . . . . Derelict Logs Recovered . | . . . . . . . . . . . Drone Launches . | . . . . . . . . . . . Drone Recoveries . | . . . . . . . . . . . Exploration | -11 -10 -9 -8 -7 -6 -5 -5 -5 -5 -5 ------------- Run | Yrd Mat Mat Mat Fac Fac Fac Ext Cet Arc Hub Turns Passed 8575 | 60 133 398 982 1447 88 2172 1240 984 343 728 Spaces Moved 4147 | 44 109 177 392 805 46 843 692 531 173 335 Core 38 | 4 . . . . . . . . . 34 Treads 1374 | . . 89 212 1 . 103 . 495 173 301 Legs 1173 | 40 109 88 58 57 46 740 35 . . . Wheels 1562 | . . . 122 747 . . 657 36 . . Hover . | . . . . . . . . . . . Flight . | . . . . . . . . . . . Fastest Speed 50 | 50 120 120 90 90 192 125 100 140 160 50 Average Speed 149 | 113 120 142 138 113 192 198 132 160 160 148 Slowest Speed 470 | 120 120 190 260 320 192 470 400 200 240 160 Overloaded Moves . | . . . . . . . . . . . Propulsion Burnouts . | . . . . . . . . . . . Robots Hopped . | . . . . . . . . . . . Cave-ins Triggered . | . . . . . . . . . . . Exploration Rate (%) 44 | 4 28 20 33 24 . 22 64 96 97 57 Regions Visited 10 Branch Regions 4 Pre-discovered Areas . | . . . . . . . . . . . Known Exits Taken 8 | . 1 . 1 1 1 1 1 1 1 . Unknown Exits Taken 2 | 1 . 1 . . . . . . . . Scrap Searched . | . . . . . . . . . . . Spaces Dug 26 | . . . . 1 . 25 . . . . Terrain Destroyed 554 | . . . . 99 . 268 . 8 2 177 Melee . | . . . . . . . . . . . Projectile 36 | . . . . 5 . 16 . 2 2 11 AOE 518 | . . . . 94 . 252 . 6 . 166 Terrain Rammed . | . . . . . . . . . . . Walls Destroyed . | . . . . . . . . . . . Machines Disabled . | . . . . . . . . . . . Actions | -11 -10 -9 -8 -7 -6 -5 -5 -5 -5 -5 --------- Run | Yrd Mat Mat Mat Fac Fac Fac Ext Cet Arc Hub Total 5697 | 51 110 247 668 1205 46 1146 913 631 213 467 Wait 580 | . . 14 71 268 . 90 44 30 6 57 Move 4137 | 43 108 176 391 804 45 842 691 530 172 335 Hop . | . . . . . . . . . . . Pick Up 107 | 2 1 3 23 16 . 21 24 14 3 . Fast Attach 54 | 6 1 4 13 7 . 8 5 1 6 3 Attach 73 | . . . 9 8 1 28 10 5 1 11 Detach 8 | . . . . 2 . 2 . 2 . 2 Swap 117 | . . 7 15 30 . 27 25 9 2 2 Drop 72 | . . 2 18 5 . 5 17 11 9 5 Fire 446 | . . 36 81 65 . 118 55 29 14 48 Melee 30 | . . . 30 . . . . . . . Ram 2 | . . . 1 . . . 1 . . . Kick 8 | . . 1 5 . . 2 . . . . Crush 15 | . . . 11 . . . . . . 4 Escape Stasis . | . . . . . . . . . . . Rewire 44 | . . . . . . 3 41 . . . Trap . | . . . . . . . . . . . Miscellaneous 4 | . . 4 . . . . . . . . Route ------- -11/Scrapyard -10/Materials (discovered 2 exits: *Mat / *Min) -9/Materials -8/Materials (discovered 2 exits: *Fac / *Sto) -7/Factory (discovered 3 exits: *Fac / Low x2) -6/Factory -5/Factory (discovered 5 exits: *Fac / *Upp x2 / *Ext x2) -5/Extension (discovered 3 exits: *Fac x2 / *Cet) -5/Cetus (discovered 3 exits: *Fac x2 / *Arc) -5/Archives (discovered 3 exits: *Fac / *Hub x2) -5/Hub_04(d) History --------- Turn | Location | Event 3 | -11/Scrapyard | Discovered new exit (range 16) 61 | -11/Scrapyard | Entered Materials 143 | -10/Materials | Discovered new exit (range 12) 155 | -10/Materials | Identified exit to Mines 184 | -10/Materials | Discovered new exit (range 6) 192 | -10/Materials | Identified exit to Materials 194 | -10/Materials | Entered another Materials area 194 | -9/Materials | Evolved 2 slots: Propulsion x2 305 | -9/Materials | Build established: Mutant 570 | -9/Materials | Discovered new exit (range 12) 592 | -9/Materials | Entered another Materials area 592 | -8/Materials | Evolved 2 slots: Utility x2 738 | -8/Materials | Build established: Scavenger-Mutant 1038 | -8/Materials | Lost 5 parts (3n1u1w) 1153 | -8/Materials | Lost 4 parts (1p1n2u) 1237 | -8/Materials | Discovered new exit (range 13) 1279 | -8/Materials | Lost 3 parts (3n) 1427 | -8/Materials | Identified exit to Storage 1489 | -8/Materials | Repaired Corrupted Beam Rifle 1545 | -8/Materials | Discovered new exit (range 10) 1573 | -8/Materials | Identified exit to Factory 1574 | -8/Materials | Entered Factory 1574 | -7/Factory | Evolved 2 slots: Utility x2 1680 | -7/Factory | Found Prototype Launcher 1680 | -7/Factory | Identified Rocket Array 1684 | -7/Factory | Found Rocket Array 1718 | -7/Factory | Build established: Mutant 1770 | -7/Factory | Identified exit to Lower Caves 1822 | -7/Factory | Fabricated Hacking Suite (x1) 2112 | -7/Factory | Lost 4 parts (1p2n1u) 2556 | -7/Factory | Repaired Imp. Medium Armor Plating 2601 | -7/Factory | Repaired Imp. EM Pulse Cannon 2646 | -7/Factory | Repaired Imp. Cooling System 2686 | -7/Factory | Repaired Imp. Sensor Array 2686 | -7/Factory | Build established: Hacker-Mutant 2864 | -7/Factory | Fabricated System Shield (x1) 2965 | -7/Factory | Discovered new exit (range 12) 2979 | -7/Factory | Identified exit to Factory 3021 | -7/Factory | Entered another Factory area 3021 | -6/Factory | Evolved 2 slots: Power x1, Utility x1 3022 | -6/Factory | Discovered new exit (range 6) 3032 | -6/Factory | Identified exit to Factory 3109 | -6/Factory | Entered another Factory area 3109 | -5/Factory | Evolved 2 slots: Utility x2 3991 | -5/Factory | Identified exit to Upper Caves 3991 | -5/Factory | Identified exit to Extension 4020 | -5/Factory | Discovered new exit (range 5) 4061 | -5/Factory | Identified exit to Factory 4270 | -5/Factory | Lost 5 parts (2n2u1w) 4309 | -5/Factory | First assault squad dispatched 4555 | -5/Factory | Lost 4 parts (1p1n2u) 4644 | -5/Factory | Lost 3 parts (2p1n) 4651 | -5/Factory | System corruption reached 10% 4715 | -5/Factory | Lost 4 parts (1p3n) 4774 | -5/Factory | Lost 5 parts (2p3u) 5275 | -5/Factory | Lost 3 parts (1p1n1u) 5281 | -5/Factory | Entered Extension 5506 | -5/Extension | Disrupted transfer network 5559 | -5/Extension | Rescued a captive Derelict 5635 | -5/Extension | Lost 3 parts (1u2w) 5651 | -5/Extension | Identified exit to Cetus 5905 | -5/Extension | Rescued A7 6004 | -5/Extension | Build established: Scavenger-Mutant 6086 | -5/Extension | Rescued a captive Derelict 6087 | -5/Extension | Rescued a captive Derelict 6121 | -5/Extension | Rescued a captive Derelict 6121 | -5/Extension | Rescued a captive Derelict 6133 | -5/Extension | Spotted B-75 Beast 6139 | -5/Extension | Spotted B-75 Beast 6156 | -5/Extension | Destroyed B-75 Beast 6174 | -5/Extension | Destroyed B-75 Beast 6204 | -5/Extension | Lost 4 parts (1p3n) 6208 | -5/Extension | Discovered exit to Factory (range 3) 6227 | -5/Extension | Lost 3 allies 6476 | -5/Extension | Discovered exit to Factory (range 16) 6521 | -5/Extension | Entered Cetus 6521 | -5/Cetus | Accompanied by 6 allies (A7) 6526 | -5/Cetus | Acquired a Cetus Manufacturing Module code from A7 6540 | -5/Cetus | Spotted Cetus Guard 6540 | -5/Cetus | Spotted Cetus Guard 6542 | -5/Cetus | Core integrity fell below 50% 6542 | -5/Cetus | Spotted Cetus Guard 6542 | -5/Cetus | Spotted Cetus Guard 6553 | -5/Cetus | Allies destroyed Cetus Guard 6560 | -5/Cetus | Destroyed Cetus Guard 6561 | -5/Cetus | Destroyed Cetus Guard 6562 | -5/Cetus | Allies destroyed Cetus Guard 6590 | -5/Cetus | Lost 4 parts (1n3u) 6593 | -5/Cetus | Lost 4 allies 6610 | -5/Cetus | System corruption reached 30% 6733 | -5/Cetus | Escorted A7 to Cetus Mainframe 7033 | -5/Cetus | Started Cetus Manufacturing Module 7058 | -5/Cetus | Manufactured an Enhanced Grunt 7083 | -5/Cetus | Manufactured an Enhanced Grunt 7108 | -5/Cetus | Manufactured an Enhanced Grunt 7133 | -5/Cetus | Manufactured an Enhanced Grunt 7158 | -5/Cetus | Manufactured an Enhanced Grunt 7188 | -5/Cetus | Discovered exit to Factory (range 16) 7271 | -5/Cetus | Security sweep announced 7337 | -5/Cetus | Discovered new exit (range 16) 7359 | -5/Cetus | Identified exit to Archives 7392 | -5/Cetus | Spotted Cetus Guard 7393 | -5/Cetus | Spotted Cetus Guard 7395 | -5/Cetus | Spotted Cetus Guard 7396 | -5/Cetus | Spotted Cetus Guard 7403 | -5/Cetus | Allies destroyed Cetus Guard 7405 | -5/Cetus | Allies destroyed Cetus Guard 7407 | -5/Cetus | Allies destroyed Cetus Guard 7409 | -5/Cetus | Destroyed Cetus Guard 7416 | -5/Cetus | Discovered exit to Factory (range 16) 7428 | -5/Cetus | Met Revision 17 7505 | -5/Cetus | Entered Archives 7505 | -5/Archives | Accompanied by 7 allies (A7) 7510 | -5/Archives | Received a hacking code to weaken MAIN.C 7586 | -5/Archives | Unable to access archive contents 7643 | -5/Archives | Discovered new exit (range 15) 7680 | -5/Archives | Unable to access archive contents 7715 | -5/Archives | Identified exit to Hub_04(d) 7759 | -5/Archives | Unable to access archive contents 7768 | -5/Archives | Discovered exit to Factory (range 13) 7825 | -5/Archives | Discovered exit to Hub_04(d) (range 14) 7848 | -5/Archives | Entered Hub_04(d) 7848 | -5/Hub_04(d) | Accompanied by 4 allies 7908 | -5/Hub_04(d) | Garrison activated, responded to threat 7914 | -5/Hub_04(d) | Spotted B-75 Beast 7927 | -5/Hub_04(d) | Destroyed B-75 Beast 7991 | -5/Hub_04(d) | Lost 4 allies 8419 | -5/Hub_04(d) | Network Hub disabled 8469 | -5/Hub_04(d) | Spotted Lightning 8480 | -5/Hub_04(d) | Core integrity fell below 20% 8487 | -5/Hub_04(d) | Spotted Lightning 8544 | -5/Hub_04(d) | Spotted Lightning 8572 | -5/Hub_04(d) | Network Hub disabled 8576 | -5/Hub_04(d) | Destroyed by Lightning with EMDS Last Messages --------------- 08545_ Penetrated by EMDS Slug. 08555_ Centrium Heavy Treads destroyed. 08557_ Dropped Hcp. Storage Unit. 08558_ 3B T KASQ%IUYKCK0UZ HUVN R2DEFL 08558_ Dropped Quantum Reactor. 08558_ Dropped Lyr. Medium Armor Plating. 08558_ Penetrated by EMDS Slug. 08559_ Dropped Centrium Medium Armor Plating. 08564_ EMDS Slug penetrates Wall. 08572_ Penetrated by EMDS Slug. 08572_ ALERT: Network intrusion management efficiency at 70%. 08572_ Network Hub explodes. 08573_ System corrupted: Component data lost. 08574_ EMDS Slug penetrates Earth. 08574_ Med. Treads destroyed. 08576_ Penetrated by EMDS Slug. 08576_ Adv. Heat Sink destroyed. 08576_ Penetrated by EMDS Slug. Map ----- +----------------------------------------------------+ | ?????????????????????????????????????? | | ?????????????????????????????????????? | | ?????????????????????????????????????? | | ?????????????????????????????????????? | | ?????????????????????????????????????? | | ??????????????????? ????????????????? | | ??????????????????? ????????????????? | | ???#*# ?? ? ????? ????????????????? | | ???# " ?# "?" "???# #???????????????? | | #/## ""?# # #???????????????? | | !% "## """ " # #???????????????? | | / ?# +??????? ???????? | | #### "## "?" ??+ #?????? #?????? | | #?#" "## ? ???# #?????? ??????? | | ###" "##"###"##??# #????? ??????? | | !" " #??# #####"";;###????? | | " " #??# ## #????? | | " " #??# "# " " #????? | | ! " " ] #?##! ## #????? | | ! " " ###[= ## ! #????? | | ] " " #*!![! ##+#;;;;##?????? | | " " ! [!= ;#??????? | | " " # !%! h ;#??????? | | " " "# ! ####hh ;#######? | | """" """"" ##########?# ; ; #? | | """""""""""" #?#########@; ; #? | | " #?#] ! ; ; #? | | " #?# ; ; / #? | | " #?# "" ; ; #? | | " #?# ; ; ! #? | | [" #?######;;;;; ;;;;;###? | | " #????# ;;;;;;;;;;;;; # | | " #????# ; ! ; # | | " #????# ; ; # | | [ " #????# ; ; # | | " #????# ; ; # | | """""""""""" #????# ; ; # | | ?????# ; ; # | | ??????????# ; " # | | ??#####????????????# ; " ## | | ???????????????????# " " ? | | ???????????????????# "= " ## | | ???????????????????# """"""""""""" #? | | ???????????????????# ? | | ???????????????????# #? | | ?????????????????????###############?? | | ?????????????????????????????????????? | | ?????????????????????????????????????? | | ?????????????????????????????????????? | | ?????????????????????????????????????? | +----------------------------------------------------+ Best States ------------- Heat Dissipation 78 Energy Generation 39 Energy Capacity 565 Matter Stores 300 Matter Capacity 300 Sight Range 16 Robot Scan Range 15 Terrain Scan Density 10 Armor Coverage 1350 Phase Shifting 5 Evasion (%) 55 Targeting Accuracy 8 Recoil Reduction 4 Offensive Hacking 32 Defensive Hacking 14 Item Schematics ----------------- Hacking Suite | -8/Materials | Hacked System Shield | -7/Factory | Hacked Robot Schematics ------------------ None Fabricated ------------ Hacking Suite | x1 | -7/Factory System Shield | x1 | -7/Factory Alien Tech Used ----------------- None Achievements -------------- Main Advantage Challenges ------------ None Game ------ Seed DimensionalTargetPurifier Manual? 0 Play Time 01:32:11 Cumulative 83.7 hours Start 2025.03.25 @ 10:23:49 End 2025.03.25 @ 12:01:34 Sessions 1 Manual Loads 0 Difficulty Rogue Special Mode None Game No. 56 Rogue 56 Adventurer 0 Explorer 0 Win Type - Total 0 Types 0/0/0/0/0/0/0/0/0 Lore% 29 Gallery% 55 Achievement% 48 Wizard Run 0 Options --------- Layout 1 ASCII 0 Keyboard 1 Movement Numpad Keybinds 0 Fullscreen 1 Font 24/Smallcaps Map View 50x35 Zoom Use 0% Tactical HUD 1 Map Filters NONE Filters NONE Steam 1 RUN: 66af0653-e193-4819-afab-d07d6c810922